fUST/lending_fUST_20240123
["ID","MTS","AMOUNT","RATE_DAILY","PERIOD"]
[312567113,1706008238900,-5113.053011,0.00020536,2]
[312567115,1706008238911,-5113.053011,0.00020536,2]
[312567117,1706008238922,-5113.053011,0.00020536,2]
[312567119,1706008238931,-5113.053011,0.00020536,2]
[312567120,1706008238941,-151.0,0.00020546,2]
[312567122,1706008238950,-2692.300485,0.00020546,2]
[312567124,1706008238959,-2692.300485,0.00020546,2]
[312567126,1706008238968,-350.79567986,0.00020546,2]
[312567129,1706008238981,-982.13570837,0.00020546,2]
[312567131,1706008238994,-6278.42564477,0.00020546,2]
[312567132,1706008239003,-7611.357033,0.00020546,2]
[312567134,1706008239012,-4110.21732223,0.00020546,2]
[312567155,1706008241470,-1002.83568877,0.00020546,2]
[312567156,1706008241480,-5113.053011,0.00020546,2]
[312567157,1706008241490,-151.0,0.00020556,2]
[312567158,1706008241501,-2692.300485,0.00020556,2]
[312567159,1706008241509,-275.67468713,0.00020556,2]
[312567166,1706008241966,-2416.62579787,0.00020556,2]
[312567167,1706008241975,-7611.357033,0.00020556,2]
[312567168,1706008241985,-4222.53067568,0.00020556,2]
[312567216,1706008244050,-624.03659385,0.00020556,2]
[312567232,1706008246520,-2764.78976347,0.00020556,2]
[312567233,1706008246529,-4009.86685552,0.00020556,2]
[312567245,1706008615451,5000.0,0.00017223,2]
[312567246,1706008615480,19900.0,0.00017223,2]
[312567247,1706008631195,250.0,0.00017222,2]
[312567248,1706008633861,280.0,0.0002194,7]
[312567250,1706008725394,-154.92253873,0.00018121,3]
[312567251,1706008725421,-275.07746127,0.00020585,3]
[312567252,1706008738872,154.92253873,0.00016318,3]
[312567253,1706008758874,154.92253873,0.00016318,3]
[312567254,1706008767762,684.28265187,0.00016318,2]
[312567255,1706008771774,154.92253873,0.00014686,2]
[312567256,1706008774871,154.92253873,0.00016318,3]
[312567257,1706008787624,650.24271419,0.00016318,2]
[312567258,1706008791770,155.36175357,0.00014686,2]
[312567259,1706008792876,154.92253873,0.00016318,3]
[312567260,1706008812876,154.92253873,0.00016318,3]
[312567261,1706008830872,154.92253873,0.00016318,3]
[312567262,1706008848881,154.92253873,0.00016318,3]
[312567263,1706008866881,154.92253873,0.00016318,3]
[312567264,1706008886882,154.92253873,0.00016318,3]
[312567265,1706008904880,154.92253873,0.00016318,3]
[312567266,1706008920881,154.92253873,0.00016318,3]
[312567267,1706008933838,280.0,0.0002194,7]
[312567268,1706008936887,154.92253873,0.00016318,3]
[312567269,1706008954878,154.92253873,0.00016318,3]
[312567270,1706008978888,154.92253873,0.00016318,3]
[312567271,1706008985284,1036.27479942,0.00017168,2]
[312567272,1706008994969,154.92253873,0.00016318,3]
[312567277,1706009016901,154.92253873,0.00016648,3]
[312567278,1706009034896,154.92253873,0.00016648,3]
[312567279,1706009046397,9535.23238381,0.00016927,2]
[312567281,1706009375142,181.496775,0.00016307,2]
[312567285,1706009403885,9818.503225,0.00015839,2]
[312567286,1706009403915,6225.8675615,0.00015839,2]
[312567325,1706009432699,-154.93802479,0.00016626,2]
[312567328,1706009432709,-154.93802479,0.00016627,2]
[312567331,1706009432718,-154.93802479,0.00016628,3]
[312567334,1706009432727,-154.93802479,0.00016628,2]
[312567337,1706009432737,-155.28482894,0.00016629,2]
[312567340,1706009432747,-479.85438016,0.00016927,2]
[312567393,1706009438621,-1322.64729642,0.00016927,2]
[312567400,1706009438681,-3764.57586979,0.00016927,2]
[312567402,1706009438693,-1942.05,0.00016927,2]
[312567492,1706009442166,-2353.6978861,0.00016927,2]
[312567495,1706009442177,-3922.50024528,0.00016927,2]
[312567497,1706009442192,-1579.44193844,0.00016927,2]
[312567499,1706009442202,-9266.45537725,0.00018499,2]
[312567603,1706009447002,-0.02657683,0.00018498,2]
[312567605,1706009490428,1811.99873697,0.00015839,2]
[312567606,1706009533766,267.0,0.00021729,7]
[312567610,1706009925857,1962.13370153,0.00015872,2]
[312567611,1706010078840,533.37510912,0.00014283,2]
[312567624,1706010326414,181.496775,0.00014541,2]
[312567628,1706010354553,9285.12811588,0.0001454,2]
[312567629,1706010354587,10000.0,0.0001454,2]
[312567644,1706010565094,156.78822438,0.0001444,2]
[312567768,1706010633755,-154.92253873,0.00014519,2]
[312567770,1706010633765,-335.28077481,0.00014519,2]
[312567771,1706010633779,-903.76836169,0.0001452,2]
[312567772,1706010633789,-199.27594175,0.0001452,2]
[312567773,1706010633799,-154.92253873,0.00014521,2]
[312567774,1706010633808,-154.92253873,0.00014521,2]
[312567775,1706010633818,-237.68748266,0.00014522,2]
[312567776,1706010633827,-616.82825218,0.00014523,2]
[312567777,1706010633838,-4172.55382884,0.00014523,2]
[312567778,1706010633847,-36970.40189612,0.00014523,2]
[312567779,1706010633857,-1741.23527346,0.00014524,2]
[312567780,1706010633865,-855.72007877,0.0001454,2]
[312567781,1706010633877,-4759.15180535,0.0001454,2]
[312567782,1706010633886,-7062.85591153,0.00015,2]
[312567826,1706010639614,-2434.69547249,0.00015,2]
[312567834,1706010639677,-491.32098403,0.00015,2]
[312567836,1706010639686,-1266.95335862,0.00015552,2]
[312567838,1706010639697,-1347.88240153,0.00015553,2]
[312567840,1706010639706,-221.7072064,0.0001587,2]
[312567842,1706010639715,-159.65374056,0.00015871,2]
[312567844,1706010639726,-200.0,0.00015987,2]
[312567845,1706010639736,-561.53264515,0.0001796,2]
[312567846,1706010639745,-276.88942869,0.00018398,2]
[312567847,1706010639756,-470.52459336,0.00018497,2]
[312567848,1706010639766,-1820.15501951,0.00018498,2]
[312567849,1706010639777,-65832.80635889,0.00018498,2]
[312567850,1706010639786,-155.07472046,0.00018498,2]
[312567851,1706010639797,-10678.54589642,0.00018499,2]
[312567852,1706010639807,-1063.90433863,0.00018526,2]
[312567853,1706010639816,-3799.15085644,0.000189,2]
[312567854,1706010639826,-1582.38308236,0.00019,2]
[312567855,1706010639836,-164.891878,0.00019178,2]
[312567856,1706010639845,-177.569411,0.00019178,2]
[312567857,1706010639854,-636.10139353,0.00019577,2]
[312567859,1706010639864,-155.02348427,0.0002,2]
[312567861,1706010639873,-26539.55218995,0.00020396,2]
[312567863,1706010639884,-88439.21580605,0.00020396,2]
[312567896,1706010641006,-2337.63320652,0.00020396,2]
[312567897,1706010641129,-542.1180692,0.00020396,2]
[312567997,1706010642931,-7773.20000001,0.00020396,2]
[312567999,1706010642945,-1160.4,0.00020396,2]
[312568005,1706010643004,-303.8383,0.00020396,2]
[312568006,1706010643016,-329.47296623,0.00020396,2]
[312568007,1706010643035,-11436.48143156,0.00020396,2]
[312568008,1706010643046,-151.0,0.00020396,2]
[312568009,1706010643056,-1884.61034,0.00020396,2]
[312568010,1706010643067,-1884.61034,0.00020396,2]
[312568011,1706010643078,-151.0,0.00020396,2]
[312568012,1706010643088,-3149.672884,0.00020396,2]
[312568013,1706010643098,-3149.672884,0.00020396,2]
[312568014,1706010643109,-5455.094359,0.00020396,2]
[312568015,1706010643119,-5455.094359,0.00020396,2]
[312568016,1706010643129,-241.225401,0.00020476,2]
[312568017,1706010643140,-241.225401,0.00020476,2]
[312568018,1706010643150,-2982.93764805,0.00020486,3]
[312568056,1706010646181,-422.19200722,0.00014521,2]
[312568058,1706010646190,-416.38288128,0.00020485,2]
[312568073,1706010646317,-195.80792141,0.00020485,2]
[312568075,1706010646328,-154.92253873,0.00020485,2]
[312568077,1706010646338,-4699.84235195,0.00020486,3]
[312568079,1706010646347,-199.27594175,0.00020495,2]
[312568081,1706010646356,-92.78590961,0.00020496,2]
[312568084,1706010646380,-58.21409039,0.00020496,2]
[312568086,1706010646389,-151.0,0.00020496,2]
[312568088,1706010646398,-151.0,0.00020496,2]
[312568090,1706010646408,-151.0,0.00020496,2]
[312568092,1706010646418,-1884.61034,0.00020496,2]
[312568094,1706010646427,-1884.61034,0.00020496,2]
[312568096,1706010646436,-151.0,0.00020496,2]
[312568098,1706010646445,-3149.672884,0.00020496,2]
[312568100,1706010646454,-3149.672884,0.00020496,2]
[312568102,1706010646463,-3149.672884,0.00020496,2]
[312568104,1706010646472,-3149.672884,0.00020496,2]
[312568105,1706010646481,-5455.094359,0.00020496,2]
[312568107,1706010646492,-5455.094359,0.00020496,2]
[312568109,1706010646501,-5455.094359,0.00020496,2]
[312568111,1706010646510,-5455.094359,0.00020496,2]
[312568113,1706010646520,-3753.73765729,0.00020554,2]
[312568115,1706010646531,-606.92353885,0.00020554,2]
[312568117,1706010646541,-241.225401,0.00020554,2]
[312568119,1706010646550,-241.225401,0.00020554,2]
[312568121,1706010646559,-151.0,0.00020554,2]
[312568123,1706010646568,-151.0,0.00020554,2]
[312568125,1706010646578,-151.0,0.00020554,2]
[312568127,1706010646587,-265.743168,0.00020554,2]
[312568129,1706010646597,-1884.61034,0.00020554,2]
[312568131,1706010646607,-1884.61034,0.00020554,2]
[312568133,1706010646616,-1884.61034,0.00020554,2]
[312568135,1706010646625,-1884.61034,0.00020554,2]
[312568137,1706010646634,-173.15813,0.00020554,2]
[312568138,1706010646644,-3149.672884,0.00020554,2]
[312568140,1706010646657,-3149.672884,0.00020554,2]
[312568142,1706010646666,-3149.672884,0.00020554,2]
[312568144,1706010646676,-3149.672884,0.00020554,2]
[312568146,1706010646686,-5455.094359,0.00020554,2]
[312568148,1706010646697,-5455.094359,0.00020554,2]
[312568150,1706010646706,-5455.094359,0.00020554,2]
[312568152,1706010646715,-5455.094359,0.00020554,2]
[312568154,1706010646725,-479.00860683,0.00020555,2]
[312568156,1706010646734,-620.80506968,0.00020555,2]
[312568158,1706010646744,-4813.00638666,0.00020564,2]
[312568160,1706010646754,-325.08563415,0.00020564,2]
[312568162,1706010646764,-241.225401,0.00020565,2]
[312568164,1706010646773,-241.225401,0.00020565,2]
[312568166,1706010646786,-241.225401,0.00020573,2]
[312568168,1706010646797,-241.225401,0.00020573,2]
[312568170,1706010646806,-151.0,0.00020573,2]
[312568172,1706010646815,-151.0,0.00020573,2]
[312568174,1706010646825,-152.725525,0.00020573,2]
[312568175,1706010646834,-1884.61034,0.00020573,2]
[312568177,1706010646844,-1884.61034,0.00020573,2]
[312568179,1706010646853,-1884.61034,0.00020573,2]
[312568181,1706010646862,-1884.61034,0.00020573,2]
[312568183,1706010646872,-1884.61034,0.00020573,2]
[312568185,1706010646881,-1884.61034,0.00020573,2]
[312568187,1706010646891,-1884.61034,0.00020573,2]
[312568189,1706010646900,-1884.61034,0.00020573,2]
[312568191,1706010646910,-3149.672884,0.00020573,2]
[312568193,1706010646920,-3149.672884,0.00020573,2]
[312568195,1706010646929,-3149.672884,0.00020573,2]
[312568196,1706010646938,-3149.672884,0.00020573,2]
[312568197,1706010646947,-3149.672884,0.00020573,2]
[312568198,1706010646956,-3149.672884,0.00020573,2]
[312568199,1706010646964,-3149.672884,0.00020573,2]
[312568200,1706010646973,-3149.672884,0.00020573,2]
[312568201,1706010646982,-3149.672884,0.00020573,2]
[312568202,1706010646991,-3149.672883,0.00020573,2]
[312568203,1706010647000,-5455.094359,0.00020573,2]
[312568204,1706010647009,-5455.094359,0.00020573,2]
[312568205,1706010647018,-5455.094359,0.00020573,2]
[312568206,1706010647029,-5455.094359,0.00020573,2]
[312568207,1706010647037,-5455.094359,0.00020573,2]
[312568208,1706010647047,-5455.094359,0.00020573,2]
[312568209,1706010647055,-5455.094359,0.00020573,2]
[312568210,1706010647064,-5455.094359,0.00020573,2]
[312568211,1706010647073,-5455.094359,0.00020573,2]
[312568212,1706010647082,-5455.094363,0.00020573,2]
[312568213,1706010647092,-1253.15755419,0.00020573,2]
[312568214,1706010647102,-261.13319485,0.00020573,2]
[312568215,1706010647111,-8758.89884321,0.00020573,2]
[312568216,1706010647121,-266.58253643,0.00020573,2]
[312568217,1706010647130,-291.2348874,0.00020573,2]
[312568218,1706010647139,-4353.71662929,0.00020573,2]
[312568219,1706010647149,-155.5192579,0.00020573,2]
[312568220,1706010647158,-2102.56602861,0.00020573,2]
[312568221,1706010647167,-167.4475974,0.00020574,2]
[312568222,1706010647176,-194.58580072,0.00020574,2]
[312568223,1706010647185,-15912.03300123,0.00020583,2]
[312568224,1706010647194,-160.96626873,0.00020583,2]
[312568225,1706010647203,-155.96557472,0.00020583,2]
[312568226,1706010647213,-2073.50516209,0.00020583,2]
[312568227,1706010647222,-241.225401,0.00020583,2]
[312568228,1706010647231,-241.225401,0.00020583,2]
[312568229,1706010647239,-151.0,0.00020583,2]
[312568230,1706010647248,-151.0,0.00020583,2]
[312568231,1706010647257,-1884.61034,0.00020583,2]
[312568232,1706010647266,-1884.61034,0.00020583,2]
[312568233,1706010647275,-1884.61034,0.00020583,2]
[312568234,1706010647286,-1884.61033629,0.00020583,2]
[312568235,1706010647295,-1993.11428292,0.00020584,2]
[312568236,1706010647304,-450.30552196,0.00020584,2]
[312568237,1706010647314,-241.225401,0.00020585,2]
[312568238,1706010647322,-241.225401,0.00020585,2]
[312568239,1706010647331,-325.61560408,0.00020585,2]
[312568240,1706010647341,-241.225401,0.00020595,2]
[312568241,1706010647351,-241.225401,0.00020595,2]
[312568243,1706010647361,-151.0,0.00020595,2]
[312568245,1706010647370,-151.0,0.00020595,2]
[312568247,1706010647380,-1696.365997,0.00020595,2]
[312568249,1706010647389,-11203.67159828,0.00020595,2]
[312568251,1706010647399,-241.225401,0.00020596,2]
[312568253,1706010647408,-241.225401,0.00020596,2]
[312568255,1706010647417,-241.225401,0.00020596,2]
[312568257,1706010647427,-241.225401,0.00020596,2]
[312568259,1706010647436,-241.225401,0.00020596,2]
[312568261,1706010647445,-241.225399,0.00020596,2]
[312568263,1706010647455,-151.0,0.00020596,2]
[312568264,1706010647464,-151.0,0.00020596,2]
[312568265,1706010647473,-151.0,0.00020596,2]
[312568267,1706010647483,-151.0,0.00020596,2]
[312568269,1706010647492,-50000.0,0.00020596,2]
[312568271,1706010647502,-249.575916,0.00020657,2]
[312568273,1706010647512,-38635.00137162,0.00020722,2]
[312568275,1706010647521,-14374.19059328,0.00020807,2]
[312568277,1706010647533,-8652.24006744,0.00020807,2]
[312568279,1706010647543,-5000.0,0.00020807,2]
[312568281,1706010647552,-5000.0,0.00020807,2]
[312568283,1706010647562,-17509.34561822,0.00020807,2]
[312568284,1706010647572,-50000.0,0.00020807,2]
[312568286,1706010647582,-15831.65069559,0.00020807,2]
[312568288,1706010647592,-5000.0,0.00020807,2]
[312568290,1706010647601,-1180.82729489,0.00020807,2]
[312568292,1706010647611,-5000.0,0.00020807,2]
[312568294,1706010647620,-50000.0,0.00020807,2]
[312568296,1706010647629,-13911.90200278,0.00020807,2]
[312568298,1706010647639,-14891.89840616,0.00020807,2]
[312568300,1706010647650,-5000.0,0.00020807,2]
[312568301,1706010647660,-1481.45209602,0.00020819,2]
[312568303,1706010647670,-297.20702502,0.00020819,2]
[312568305,1706010647679,-500.0,0.00020822,2]
[312568307,1706010647691,-500.0,0.00020822,2]
[312568309,1706010647700,-500.0,0.00020822,2]
[312568311,1706010647710,-500.0,0.00020822,2]
[312568312,1706010647720,-500.0,0.00020822,2]
[312568313,1706010647729,-500.0,0.00020822,2]
[312568314,1706010647739,-500.0,0.00020822,2]
[312568315,1706010647748,-500.0,0.00020822,2]
[312568316,1706010647758,-500.0,0.00020822,2]
[312568317,1706010647768,-500.0,0.00020822,2]
[312568318,1706010647778,-500.0,0.00020822,2]
[312568319,1706010647790,-500.0,0.00020822,2]
[312568320,1706010647800,-500.0,0.00020822,2]
[312568321,1706010647809,-500.0,0.00020822,2]
[312568322,1706010647819,-500.0,0.00020822,2]
[312568323,1706010647829,-500.0,0.00020822,2]
[312568324,1706010647839,-500.0,0.00020822,2]
[312568325,1706010647848,-500.0,0.00020822,2]
[312568326,1706010647858,-500.0,0.00020822,2]
[312568327,1706010647868,-500.0,0.00020822,2]
[312568328,1706010647877,-500.0,0.00020822,2]
[312568329,1706010647887,-500.0,0.00020822,2]
[312568330,1706010647896,-500.0,0.00020822,2]
[312568331,1706010647906,-500.0,0.00020822,2]
[312568332,1706010647916,-500.0,0.00020822,2]
[312568333,1706010647925,-500.0,0.00020822,2]
[312568334,1706010647934,-500.0,0.00020822,2]
[312568335,1706010647944,-225.09173029,0.00020822,2]
[312568336,1706010647954,-500.0,0.00020822,2]
[312568337,1706010647963,-500.0,0.00020822,2]
[312568338,1706010647972,-500.0,0.00020822,2]
[312568339,1706010647982,-500.0,0.00020822,2]
[312568340,1706010647991,-500.0,0.00020822,2]
[312568341,1706010648000,-420.75258604,0.00020822,2]
[312568342,1706010648009,-198.66717382,0.00020822,2]
[312568343,1706010648019,-500.0,0.00020822,2]
[312568344,1706010648028,-500.0,0.00020822,2]
[312568345,1706010648040,-500.0,0.00020822,2]
[312568346,1706010648049,-500.0,0.00020822,2]
[312568347,1706010648058,-500.0,0.00020822,2]
[312568348,1706010648068,-500.0,0.00020822,2]
[312568349,1706010648077,-500.0,0.00020822,2]
[312568350,1706010648086,-500.0,0.00020822,2]
[312568351,1706010648095,-500.0,0.00020822,2]
[312568352,1706010648104,-500.0,0.00020822,2]
[312568353,1706010648113,-500.0,0.00020822,2]
[312568354,1706010648123,-500.0,0.00020822,2]
[312568355,1706010648132,-500.0,0.00020822,2]
[312568356,1706010648143,-500.0,0.00020822,2]
[312568357,1706010648152,-500.0,0.00020822,2]
[312568358,1706010648161,-500.0,0.00020822,2]
[312568359,1706010648170,-500.0,0.00020822,2]
[312568360,1706010648180,-500.0,0.00020822,2]
[312568361,1706010648189,-500.0,0.00020822,2]
[312568363,1706010648198,-500.0,0.00020822,2]
[312568364,1706010648207,-500.0,0.00020822,2]
[312568365,1706010648299,-500.0,0.00020822,2]
[312568366,1706010648308,-500.0,0.00020822,2]
[312568367,1706010648318,-500.0,0.00020822,2]
[312568368,1706010648327,-500.0,0.00020822,2]
[312568369,1706010648336,-500.0,0.00020822,2]
[312568370,1706010648345,-500.0,0.00020822,2]
[312568371,1706010648354,-500.0,0.00020822,2]
[312568372,1706010648363,-500.0,0.00020822,2]
[312568373,1706010648373,-500.0,0.00020822,2]
[312568374,1706010648382,-500.0,0.00020822,2]
[312568375,1706010648391,-500.0,0.00020822,2]
[312568376,1706010648400,-500.0,0.00020822,2]
[312568377,1706010648409,-500.0,0.00020822,2]
[312568378,1706010648419,-500.0,0.00020822,2]
[312568379,1706010648428,-500.0,0.00020822,2]
[312568380,1706010648438,-500.0,0.00020822,2]
[312568381,1706010648447,-500.0,0.00020822,2]
[312568382,1706010648456,-500.0,0.00020822,2]
[312568383,1706010648465,-500.0,0.00020822,2]
[312568384,1706010648474,-500.0,0.00020822,2]
[312568385,1706010648483,-500.0,0.00020822,2]
[312568386,1706010648493,-500.0,0.00020822,2]
[312568387,1706010648502,-500.0,0.00020822,2]
[312568388,1706010648511,-500.0,0.00020822,2]
[312568389,1706010648521,-500.0,0.00020822,2]
[312568390,1706010648532,-500.0,0.00020822,2]
[312568391,1706010648542,-500.0,0.00020822,2]
[312568392,1706010648552,-500.0,0.00020822,2]
[312568393,1706010648561,-500.0,0.00020822,2]
[312568394,1706010648570,-500.0,0.00020822,2]
[312568395,1706010648579,-500.0,0.00020822,2]
[312568396,1706010648588,-500.0,0.00020822,2]
[312568397,1706010648598,-500.0,0.00020822,2]
[312568398,1706010648607,-500.0,0.00020822,2]
[312568399,1706010648616,-500.0,0.00020822,2]
[312568400,1706010648625,-500.0,0.00020822,2]
[312568401,1706010648635,-500.0,0.00020822,2]
[312568402,1706010648644,-500.0,0.00020822,2]
[312568403,1706010648655,-500.0,0.00020822,2]
[312568404,1706010648664,-500.0,0.00020822,2]
[312568405,1706010648673,-500.0,0.00020822,2]
[312568406,1706010648684,-500.0,0.00020822,2]
[312568407,1706010648694,-461.92328432,0.00020822,2]
[312568408,1706010648703,-500.0,0.00020822,2]
[312568409,1706010648713,-500.0,0.00020822,2]
[312568410,1706010648723,-500.0,0.00020822,2]
[312568411,1706010648732,-500.0,0.00020822,2]
[312568412,1706010648742,-771.10139871,0.00020822,2]
[312568413,1706010648752,-500.0,0.00020822,2]
[312568414,1706010648762,-500.0,0.00020822,2]
[312568415,1706010648771,-771.10139871,0.00020822,2]
[312568416,1706010648783,-500.0,0.00020822,2]
[312568417,1706010648792,-500.0,0.00020822,2]
[312568418,1706010648802,-470.75210182,0.00020822,2]
[312568419,1706010648811,-500.0,0.00020822,2]
[312568420,1706010648825,-771.10139871,0.00020822,2]
[312568421,1706010648834,-500.0,0.00020822,2]
[312568422,1706010648844,-500.0,0.00020822,2]
[312568423,1706010648854,-771.10139871,0.00020822,2]
[312568424,1706010648863,-500.0,0.00020822,2]
[312568425,1706010648873,-500.0,0.00020822,2]
[312568426,1706010648882,-183.53276153,0.00020822,2]
[312568427,1706010648892,-771.10139871,0.00020822,2]
[312568428,1706010648901,-500.0,0.00020822,2]
[312568429,1706010648910,-500.0,0.00020822,2]
[312568430,1706010648920,-500.0,0.00020822,2]
[312568431,1706010648929,-771.10139871,0.00020822,2]
[312568432,1706010648939,-500.0,0.00020822,2]
[312568433,1706010648948,-500.0,0.00020822,2]
[312568434,1706010648957,-771.10139871,0.00020822,2]
[312568435,1706010648966,-500.0,0.00020822,2]
[312568436,1706010648976,-500.0,0.00020822,2]
[312568437,1706010648985,-500.0,0.00020822,2]
[312568438,1706010648997,-771.10139871,0.00020822,2]
[312568439,1706010649007,-500.0,0.00020822,2]
[312568440,1706010649016,-500.0,0.00020822,2]
[312568441,1706010649026,-500.0,0.00020822,2]
[312568442,1706010649039,-771.10139871,0.00020822,2]
[312568443,1706010649049,-500.0,0.00020822,2]
[312568444,1706010649058,-500.0,0.00020822,2]
[312568445,1706010649068,-500.0,0.00020822,2]
[312568446,1706010649078,-771.10139871,0.00020822,2]
[312568447,1706010649088,-500.0,0.00020822,2]
[312568448,1706010649098,-500.0,0.00020822,2]
[312568449,1706010649108,-771.10139871,0.00020822,2]
[312568450,1706010649117,-500.0,0.00020822,2]
[312568451,1706010649128,-500.0,0.00020822,2]
[312568452,1706010649138,-771.10139871,0.00020822,2]
[312568453,1706010649148,-500.0,0.00020822,2]
[312568454,1706010649158,-500.0,0.00020822,2]
[312568455,1706010649167,-500.0,0.00020822,2]
[312568456,1706010649177,-500.0,0.00020822,2]
[312568457,1706010649187,-771.10139871,0.00020822,2]
[312568458,1706010649196,-500.0,0.00020822,2]
[312568459,1706010649206,-500.0,0.00020822,2]
[312568460,1706010649215,-771.10139871,0.00020822,2]
[312568461,1706010649224,-500.0,0.00020822,2]
[312568462,1706010649234,-500.0,0.00020822,2]
[312568463,1706010649244,-771.10139871,0.00020822,2]
[312568464,1706010649254,-500.0,0.00020822,2]
[312568465,1706010649264,-500.0,0.00020822,2]
[312568466,1706010649274,-771.10139871,0.00020822,2]
[312568467,1706010649287,-500.0,0.00020822,2]
[312568468,1706010649296,-500.0,0.00020822,2]
[312568469,1706010649306,-771.10139871,0.00020822,2]
[312568470,1706010649317,-500.0,0.00020822,2]
[312568471,1706010649328,-500.0,0.00020822,2]
[312568472,1706010649339,-771.10139871,0.00020822,2]
[312568473,1706010649349,-500.0,0.00020822,2]
[312568474,1706010649360,-771.10139871,0.00020822,2]
[312568475,1706010649371,-500.0,0.00020822,2]
[312568476,1706010649381,-500.0,0.00020822,2]
[312568477,1706010649391,-771.10139871,0.00020822,2]
[312568478,1706010649402,-487.66738597,0.00020822,2]
[312568479,1706010649412,-771.10139871,0.00020822,2]
[312568480,1706010649422,-500.0,0.00020822,2]
[312568481,1706010649431,-500.0,0.00020822,2]
[312568482,1706010649441,-771.10139871,0.00020822,2]
[312568483,1706010649450,-625.7673661,0.00020822,2]
[312568484,1706010649460,-500.0,0.00020822,2]
[312568485,1706010649469,-771.10139871,0.00020822,2]
[312568486,1706010649478,-500.0,0.00020822,2]
[312568487,1706010649488,-771.10139871,0.00020822,2]
[312568488,1706010649497,-500.0,0.00020822,2]
[312568489,1706010649506,-500.0,0.00020822,2]
[312568490,1706010649515,-500.0,0.00020822,2]
[312568491,1706010649524,-771.10139871,0.00020822,2]
[312568492,1706010649539,-500.0,0.00020822,2]
[312568493,1706010649551,-500.0,0.00020822,2]
[312568494,1706010649560,-771.10139871,0.00020822,2]
[312568495,1706010649570,-500.0,0.00020822,2]
[312568496,1706010649579,-771.10139871,0.00020822,2]
[312568497,1706010649588,-500.0,0.00020822,2]
[312568498,1706010649598,-500.0,0.00020822,2]
[312568499,1706010649608,-771.10139871,0.00020822,2]
[312568500,1706010649617,-500.0,0.00020822,2]
[312568501,1706010649627,-771.10139871,0.00020822,2]
[312568502,1706010649636,-500.0,0.00020822,2]
[312568503,1706010649647,-500.0,0.00020822,2]
[312568504,1706010649656,-771.10139871,0.00020822,2]
[312568505,1706010649665,-500.0,0.00020822,2]
[312568506,1706010649675,-500.0,0.00020822,2]
[312568507,1706010649685,-771.10139871,0.00020822,2]
[312568508,1706010649695,-500.0,0.00020822,2]
[312568509,1706010649704,-771.10139871,0.00020822,2]
[312568510,1706010649714,-500.0,0.00020822,2]
[312568511,1706010649723,-500.0,0.00020822,2]
[312568512,1706010649732,-771.10139871,0.00020822,2]
[312568513,1706010649742,-500.0,0.00020822,2]
[312568514,1706010649751,-771.10139871,0.00020822,2]
[312568515,1706010649762,-500.0,0.00020822,2]
[312568516,1706010649771,-771.10139871,0.00020822,2]
[312568517,1706010649780,-500.0,0.00020822,2]
[312568518,1706010649795,-771.10139871,0.00020822,2]
[312568519,1706010649804,-500.0,0.00020822,2]
[312568520,1706010649813,-500.0,0.00020822,2]
[312568521,1706010649822,-771.10139871,0.00020822,2]
[312568522,1706010649831,-500.0,0.00020822,2]
[312568523,1706010649840,-771.10139871,0.00020822,2]
[312568524,1706010649850,-500.0,0.00020822,2]
[312568525,1706010649860,-771.10139871,0.00020822,2]
[312568526,1706010649869,-500.0,0.00020822,2]
[312568527,1706010649879,-500.0,0.00020822,2]
[312568528,1706010649888,-771.10139871,0.00020822,2]
[312568529,1706010649897,-500.0,0.00020822,2]
[312568530,1706010649906,-771.10139871,0.00020822,2]
[312568531,1706010649916,-500.0,0.00020822,2]